Cogmind - Beta 16.1 @@@ ROGUE MODE // 2026.02.24 @ 21:48:20 Player: mephiles96 Result: Destroyed by S-27 Virus with Autogun Performance ------------- Evolutions (3) 1500 Regions Visited (9) 1800 Robots Destroyed (62) 310 Value Destroyed (2122) 2122 Prototype IDs (14) 280 Alien Tech Used (0) 0 Bonus (497) 497 TOTAL SCORE: 6509 Bonus ------- Follower Combat Kills 197 Met Data Miner 300 Cogmind --------- Core Integrity 0/700 Matter 300/300 Energy 100/100 System Corruption 0% Temperature Cool (0) Movement Core (350) Ox6 Location -6/Proximity Caves Parts ------- > --- POWER (2) -------- (None) > --- PROPULSION (3) --- (None) > --- UTILITY (5) ------ Large Storage Unit Improved Signal Interpreter Advanced Targeting Computer > --- WEAPON (3) ------- (None) > --- INVENTORY (15) --- Armored Wheel High-capacity Matter Pod (200) Improved Signal Interpreter Target Analyzer Improved Light Armor Plating Improved Medium Armor Plating Layered Medium Armor Plating Insulated Plating Insulated Plating Peak State ------------ > --- POWER ------------ Light Nuclear Core Light Antimatter Reactor > --- PROPULSION ------- Titanium Leg Titanium Leg Improved Titanium Leg > --- UTILITY ---------- Large Storage Unit Improved Sensor Array Improved Signal Interpreter Target Analyzer System Shield > --- WEAPON ----------- Flak Gun Flak Gun Precision Grenade Launcher > --- INVENTORY -------- Titanium Leg Titanium Leg Titanium Leg Armored Wheel High-capacity Matter Pod Improved Signal Interpreter Target Analyzer Improved Light Armor Plating Improved Medium Armor Plating Insulated Plating Insulated Plating Heavy Assault Rifle Precision Grenade Launcher Greatsword [Rating: 50] Favorites ----------- Power Light Nuclear Core Engine Light Ion Engine Power Core Light Nuclear Core Reactor Light Antimatter Reactor Propulsion Titanium Leg Treads Light Treads Leg Titanium Leg Wheel Armored Wheel Utility Large Storage Unit Device Seismic Detector Storage Large Storage Unit Processor Target Analyzer Hackware System Shield Protection Insulated Plating Weapon Flak Gun Energy Gun Small Laser Ballistic Gun Flak Gun Launcher Precision Grenade Launcher Slashing Weapon Greatsword Build | -11 -10 -9 -8 -8 -7 -7 -7 -7 -6 ------- Run | Yrd Mat Mat Mat Sto Fac Low Low Dat Pro Slots Evolved 6 | . . 2 2 . 2 . . . . Power 1 | . . . . . 1 . . . . Propulsion 1 | . . . 1 . . . . . . Utility 3 | . . 2 . . 1 . . . . Weapon 1 | . . . 1 . . . . . . Parts Attached 59 | 8 . 7 1 7 23 2 3 . 8 Power 8 | 1 . 2 . . 3 1 . . 1 Engine 3 | 1 . 1 . . 1 . . . . Core 4 | . . 1 . . 2 . . . 1 Reactor 1 | . . . . . . 1 . . . Propulsion 17 | 2 . . 1 2 5 . . . 7 Treads 2 | 2 . . . . . . . . . Leg 10 | . . . . . 3 . . . 7 Wheel 5 | . . . 1 2 2 . . . . Hover . | . . . . . . . . . . Flight . | . . . . . . . . . . Utility 18 | 3 . 3 . 3 6 . 3 . . Device 3 | 2 . . . . 1 . . . . Storage 3 | 1 . 1 . . . . 1 . . Processor 4 | . . . . 1 2 . 1 . . Hackware 1 | . . . . 1 . . . . . Protection 7 | . . 2 . 1 3 . 1 . . Artifact . | . . . . . . . . . . Weapon 16 | 2 . 2 . 2 9 1 . . . Energy Gun 3 | 1 . . . . 2 . . . . Energy Cannon . | . . . . . . . . . . Ballistic Gun 9 | 1 . 2 . 2 4 . . . . Ballistic Cannon . | . . . . . . . . . . Launcher 3 | . . . . . 2 1 . . . Special Weapon . | . . . . . . . . . . Impact Weapon . | . . . . . . . . . . Slashing Weapon 1 | . . . . . 1 . . . . Piercing Weapon . | . . . . . . . . . . Special Melee Weapon . | . . . . . . . . . . Unidentified Prototypes 4 | . . . . . 3 . . . 1 Parts Lost 37 | . . . . 4 11 1 1 . 20 Power 6 | . . . . . 3 . . . 3 Propulsion 13 | . . . . . 3 . . . 10 Utility 7 | . . . . 2 2 . 1 . 2 Weapon 11 | . . . . 2 3 1 . . 5 Highest Loss Streak 10 | . . . . 2 4 1 1 . 10 To Critical Strikes . | . . . . . . . . . . Average Backups 12 | 5 8 12 14 14 13 13 13 13 10 Power . | . 1 1 2 1 . . . . . Propulsion 3 | 3 4 4 3 3 3 4 4 4 2 Utility 5 | . 2 3 4 6 6 7 7 7 7 Weapon 2 | . 1 3 5 2 3 2 2 2 1 Tool/Special . | . . . . . . . . . . Unused Backups 16 | . 1 2 . 2 7 . . . 4 Power . | . . . . . . . . . . Propulsion 4 | . . . . 1 3 . . . . Utility 8 | . 1 1 . . 2 . . . 4 Weapon 4 | . . 1 . 1 2 . . . . Tool/Special . | . . . . . . . . . . Average Slot Usage (%) 95 | . 100 98 90 96 98 100 99 100 75 Engine 2 | . 14 7 . . 3 . . . . Core 6 | . . 3 9 9 9 7 7 7 3 Reactor 2 | . . . . . . 6 7 7 3 Treads 5 | . 28 22 18 3 . . . . . Leg 12 | . . . . . 10 23 23 23 21 Wheel 5 | . . . 9 23 12 . . . . Device 6 | . 14 22 18 6 . 7 2 . . Storage 8 | . 14 14 9 9 7 7 7 7 7 Processor 12 | . . . . 5 14 15 20 23 22 Hackware 4 | . . . . 6 7 7 7 7 3 Protection 3 | . . 7 9 9 6 . . . . Energy Gun 1 | . 14 4 . . . . . . . Ballistic Gun 19 | . 14 17 18 24 22 22 22 23 11 Peak Build Rating 50 | 9 8 17 18 26 41 50 50 47 47 Average Rating 31 | 6 8 13 18 23 37 46 47 47 34 On Entrance 25 | . 8 8 17 18 26 41 47 47 47 Avg Prop Armor Cover (%) 11 | . . . 14 13 9 . . . 14 Naked Turns . | . . . . . . . . . . Heaviest Build 52 | 12 12 36 36 38 46 52 52 48 48 Greatest Support 56 | 40 40 40 10 34 54 54 54 54 56 Greatest Overweight (x) 6 | . . . 3 3 4 . . . 6 Average Overweight (x) . | . . . 3 1 1 . . . . Largest Inventory Capacity 15 | 8 8 15 15 15 15 15 15 15 15 Average Capacity 14 | 7 8 14 15 15 15 15 15 15 15 Most Carried 15 | 8 8 15 14 15 15 15 15 14 14 Average Carried 12 | 6 8 12 14 14 13 14 14 14 11 Final Capacity 15 | 8 8 15 15 15 15 15 15 15 15 Final Carried 15 | 8 8 15 14 14 15 14 14 14 9 Class Distribution -------------------- 24% | Gunner 24% | Mutant 19% | Skirmisher 12% | Scavenger-Gunner 10% | Scavenger-Mutant 4% | Tank 4% | Scavenger-Tank Dominant Class ---------------- Mutant | -10/Materials Scavenger-Mutant | -9/Materials Scavenger-Mutant | -8/Materials Tank | -8/Storage Scavenger-Gunner | -7/Factory Skirmisher | -7/Lower Caves Gunner | -7/Lower Caves Gunner | -7/Data Miner Mutant | -6/Proximity Caves Resources | -11 -10 -9 -8 -8 -7 -7 -7 -7 -6 ----------- Run | Yrd Mat Mat Mat Sto Fac Low Low Dat Pro Matter Collected 2384 | 340 95 313 . 386 489 333 150 . 278 Remotely . | . . . . . . . . . . Salvage Created 2217 | 153 45 425 . 456 652 80 55 . 351 Parts 113 | 16 2 23 . 20 27 6 5 . 14 Haulers Intercepted 1 | . . . . . 1 . . . . Recyclers Shooed 2 | . . 1 . . 1 . . . . Parts Field Recycled . | . . . . . . . . . . Retrieved Matter . | . . . . . . . . . . Parts Self-Destructed 30 | . . . . . . 4 10 . 16 Prevented . | . . . . . . . . . . Parts Restored . | . . . . . . . . . . Kills | -11 -10 -9 -8 -8 -7 -7 -7 -7 -6 ------- Run | Yrd Mat Mat Mat Sto Fac Low Low Dat Pro Combat Hostiles Destroyed 54 | . 1 8 . 9 15 5 6 . 10 Melee 1 | . . . . . . . . . 1 Guns 41 | . 1 8 . 9 13 1 . . 9 AOE 12 | . . . . . 2 4 6 . . Classes Destroyed 8 | 3 1 2 . . 2 . . . . Worker 2 | 2 . . . . . . . . . Tunneler 2 | 2 . . . . . . . . . Hauler 1 | . . . . . 1 . . . . Recycler 3 | 1 . 2 . . . . . . . Swarmer 21 | . . 4 . . 2 4 6 . 5 Grunt 19 | . 1 2 . 5 9 . . . 2 Duelist 2 | . . . . . 1 . . . 1 Sentry 12 | . . 2 . 4 3 1 . . 2 Best Kill Streak 6 | 3 1 6 . 3 5 4 3 . 6 Combat Bots Only 6 | . 1 4 . 3 4 4 3 . 6 Max Kills in Single Turn 3 | 1 1 2 . 1 2 3 2 . 2 Gunslinging 1 | . . 1 . . . . . . 1 Exploded 3 | . . . . . 1 3 2 . . Melee 1 | . . . . . . . . . 1 Uniques/NPCs Destroyed . | . . . . . . . . . . Combat | -11 -10 -9 -8 -8 -7 -7 -7 -7 -6 -------- Run | Yrd Mat Mat Mat Sto Fac Low Low Dat Pro Hostile Shots Fired 450 | . 11 35 2 49 134 23 20 . 176 Missed 123 | . 1 11 . 11 37 10 7 . 46 Hits 327 | . 10 24 2 38 97 13 13 . 130 Melee 10 | . . . . . 6 . . . 4 Projectile 317 | . 10 24 2 38 91 13 13 . 126 AOE 1 | . . . . 1 . . . . . Critical Strikes 7 | . . 1 . 2 . . . . 4 Damage Taken 4883 | . 124 299 18 609 1172 171 208 . 2282 Core 841 | . 12 45 9 74 130 11 18 . 542 Absorbed by Shields . | . . . . . . . . . . Regen/Repaired (Parts) 33 | . . 33 . . . . . . . Core Remaining (%) 91 | 100 95 88 . 84 . . . . . Volleys Fired 144 | 7 5 17 . 38 36 6 9 . 26 Largest 3 | 2 2 2 . 3 3 3 3 . 3 Hottest 87 | 60 60 60 . 66 81 79 87 . 79 Shots Fired 327 | 14 10 34 . 107 100 10 11 . 41 Gun 306 | 14 10 34 . 107 95 6 2 . 38 Cannon . | . . . . . . . . . . Launcher 21 | . . . . . 5 4 9 . 3 Special . | . . . . . . . . . . Kinetic 291 | 7 5 31 . 107 95 6 2 . 38 Thermal 15 | 7 5 3 . . . . . . . Explosive 21 | . . . . . 5 4 9 . 3 Electromagnetic . | . . . . . . . . . . Robot Hit Streak 11 | 4 6 8 . 11 9 6 5 . 9 Robot Miss Streak 6 | 2 3 2 . 4 6 3 . . 5 Penetration Max . | . . . . . . . . . . Secondary Targets 5 | . . 1 . . 2 . . . 2 Max Gunslinging Chain 1 | . . 1 . . 1 . . . 1 Shots Hit Robots 206 | 9 6 25 . 55 69 4 4 . 34 Core Hits 193 | 6 2 14 . 21 72 11 9 . 58 Critical Kills 1 | . . . . . . . . . 1 Critical Parts Destroyed 1 | . . 1 . . . . . . . Critical Strikes 2 | . . 1 . . . . . . 1 Destroy 2 | . . 1 . . . . . . 1 Melee Attacks 3 | . . . . . 1 . . . 2 Impact . | . . . . . . . . . . Slashing 3 | . . . . . 1 . . . 2 Piercing . | . . . . . . . . . . Sneak Attacks . | . . . . . . . . . . Combat Hostiles . | . . . . . . . . . . Follow-up Attacks . | . . . . . . . . . . Damage Inflicted 4872 | 108 70 345 . 798 1446 387 568 . 1150 Guns 3179 | 108 70 345 . 792 1135 63 . . 666 Cannons . | . . . . . . . . . . Explosions 1489 | . . . . . 311 324 568 . 286 Melee 36 | . . . . . . . . . 36 Ramming 168 | . . . . 6 . . . . 162 Kinetic 3056 | 53 24 323 . 792 1135 63 . . 666 Thermal 123 | 55 46 22 . . . . . . . Explosive 1489 | . . . . . 311 324 568 . 286 Electromagnetic . | . . . . . . . . . . Impact . | . . . . . . . . . . Slashing 36 | . . . . . . . . . 36 Piercing . | . . . . . . . . . . Highest Corruption . | . . . . . . . . . . Average Corruption . | . . . . . . . . . . Corruption Purged . | . . . . . . . . . . Corruption Blocked . | . . . . . . . . . . Overload Shots . | . . . . . . . . . . Overflow Damage 80 | . . . . . 46 6 . . 28 Projectiles . | . . . . . . . . . . Explosions 80 | . . . . . 46 6 . . 28 Melee . | . . . . . . . . . . Knockbacks 1 | . . . . . . . . . 1 Impact 1 | . . . . . . . . . 1 Kinetic . | . . . . . . . . . . Secondary . | . . . . . . . . . . Self-Inflicted Damage 47 | . . . . 3 . . 12 . 32 Shots 2 | . . . . . . . 1 . 1 Rammed 1 | . . . . 1 . . . . . Targets Rammed 60 | . . . . 1 . . . . 59 Kicked 59 | . . . . . . . . . 59 Crushed . | . . . . . . . . . . Highest Temperature 152 | . 30 21 . 123 152 24 33 . 84 Average Temperature 51 | . 20 7 . 54 62 10 12 . 37 Received Heat Transfer 1353 | . 66 66 . 297 444 18 . . 462 Siege Activations . | . . . . . . . . . . Martial Activations . | . . . . . . . . . . Shielding Activations . | . . . . . . . . . . Robots Disrupted . | . . . . . . . . . . Combat Hostiles . | . . . . . . . . . . Robots Corrupted . | . . . . . . . . . . Combat Hostiles . | . . . . . . . . . . Parts Fried . | . . . . . . . . . . Impact Corruptions . | . . . . . . . . . . Robots Melted . | . . . . . . . . . . Combat Hostiles . | . . . . . . . . . . Parts Melted . | . . . . . . . . . . Heat Transferred 275 | 125 100 50 . . . . . . . Parts Sabotaged . | . . . . . . . . . . Parts Stolen . | . . . . . . . . . . Parts Stripped . | . . . . . . . . . . Power Chain Reactions . | . . . . . . . . . . Alert | -11 -10 -9 -8 -8 -7 -7 -7 -7 -6 ------- Run | Yrd Mat Mat Mat Sto Fac Low Low Dat Pro Maximum Alert Level . | . . . . . . . . . . Low Security (%) 100 | 100 100 100 100 100 100 . . . . Level 1 . | . . . . . . . . . . Level 2 . | . . . . . . . . . . Level 3 . | . . . . . . . . . . Level 4 . | . . . . . . . . . . Level 5 . | . . . . . . . . . . High Security . | . . . . . . . . . . Max Security . | . . . . . . . . . . Peak Influence 122 | 10 35 122 17 59 82 . . . . Initial 26 | . . 5 17 7 26 . . . . Average 26 | 1 7 54 17 16 22 . . . . Influence Increases 1581 | 25 45 242 . 273 403 110 140 . 343 Destroy 0b10 Robot/C 1180 | . 20 160 . 180 300 100 120 . 300 Destroy 0b10 Robot/NC 40 | 25 . 10 . . 5 . . . . Destroy Leader 192 | . 10 40 . 50 42 10 20 . 20 Allied During Kill 23 | . . . . . . . . . 23 Successful Hack 51 | . . . . 40 11 . . . . Disable Machine 15 | . . . . . 15 . . . . Destroy Structure 20 | . . 2 . 3 15 . . . . Lose Combat Pursuer 60 | . 15 30 . . 15 . . . . Influence Decreases 1581 | 25 30 215 25 231 462 110 140 . 343 Entered New Map 78 | . . 10 25 10 33 . . . . Time Decay 1237 | 25 30 205 . 196 351 100 130 . 200 Lost Part 243 | . . . . 25 78 10 10 . 120 Lost Ally 23 | . . . . . . . . . 23 Squads Dispatched 8 | . 2 . . 1 4 . . . 1 Investigation 3 | . 1 . . 1 1 . . . . Extermination 2 | . . . . . 2 . . . . Reinforcement 2 | . 1 . . . 1 . . . . Assault 1 | . . . . . . . . . 1 Garrison . | . . . . . . . . . . Intercept . | . . . . . . . . . . Searches Triggered . | . . . . . . . . . . Construction Impeded . | . . . . . . . . . . Haulers Reinforced 1 | . . . . . 1 . . . . Active Scanning Responses . | . . . . . . . . . . Cargo Convoy Interrupts . | . . . . . . . . . . Stealth | -11 -10 -9 -8 -8 -7 -7 -7 -7 -6 --------- Run | Yrd Mat Mat Mat Sto Fac Low Low Dat Pro Distress Signals 2 | . . 1 . . 1 . . . . Communications Jammed . | . . . . . . . . . . Distress Signals . | . . . . . . . . . . Times Spotted 83 | . 6 13 1 9 19 5 9 . 21 Peak Tracking Total 7 | . 3 4 . 2 5 4 4 . 7 Tactical Retreats 3 | . 1 1 . . 1 . . . . Traps | -11 -10 -9 -8 -8 -7 -7 -7 -7 -6 ------- Run | Yrd Mat Mat Mat Sto Fac Low Low Dat Pro Traps Triggered 5 | . 1 1 . . 3 . . . . Indirectly . | . . . . . . . . . . Trap Hack Attempts . | . . . . . . . . . . Triggered . | . . . . . . . . . . Disarmed . | . . . . . . . . . . Reprogrammed . | . . . . . . . . . . Reused . | . . . . . . . . . . Traps Extracted . | . . . . . . . . . . Installed . | . . . . . . . . . . Triggered . | . . . . . . . . . . Machines | -11 -10 -9 -8 -8 -7 -7 -7 -7 -6 ---------- Run | Yrd Mat Mat Mat Sto Fac Low Low Dat Pro Machines Disabled 2 | . . . . . 1 . . . 1 Max in Single Turn 1 | . . . . . 1 . . . 1 Machines Repaired . | . . . . . . . . . . Machines Dismantled . | . . . . . . . . . . Machines Sabotaged . | . . . . . . . . . . Overloaded Fab Kills . | . . . . . . . . . . Hacking | -11 -10 -9 -8 -8 -7 -7 -7 -7 -6 --------- Run | Yrd Mat Mat Mat Sto Fac Low Low Dat Pro Machines Accessed 21 | . 1 3 . 8 4 1 . 4 . Terminals 13 | . 1 1 . 8 3 . . . . Fabricators . | . . . . . . . . . . Repair Stations 2 | . . 1 . . 1 . . . . Recycling Units . | . . . . . . . . . . Scanalyzers 1 | . . 1 . . . . . . . Garrison Access . | . . . . . . . . . . Total Hacks 69 | . 3 8 . 20 11 1 . 26 . Successful 44 | . . 4 . 10 3 1 . 26 . Failed 25 | . 3 4 . 10 8 . . . . Catastrophic 6 | . 2 . . 2 2 . . . . Database Lockouts . | . . . . . . . . . . Manual 11 | . 3 1 . 2 5 . . . . Terminals 30 | . 3 1 . 20 6 . . . . Fabricators . | . . . . . . . . . . Repair Stations 8 | . . 3 . . 5 . . . . Recycling Units . | . . . . . . . . . . Scanalyzers 4 | . . 4 . . . . . . . Garrison Access . | . . . . . . . . . . Terminal Hacks 38 | . . . . 10 1 1 . 26 . Record 11 | . . . . . . . . 11 . Part Schematic 11 | . . . . 3 . . . 8 . Robot Schematic 4 | . . . . . . . . 4 . Robot Analysis 1 | . . . . . 1 . . . . Prototype ID Bank 3 | . . . . . . . . 3 . Open Door 4 | . . . . 3 . 1 . . . Level Access Points 1 | . . . . 1 . . . . . Alert Level 1 | . . . . 1 . . . . . Unreport Threat 1 | . . . . 1 . . . . . Maintenance Status 1 | . . . . 1 . . . . . Fabricator Hacks . | . . . . . . . . . . Repair Station Hacks 4 | . . 2 . . 2 . . . . Scan Component 2 | . . 1 . . 1 . . . . Repair 1 | . . 1 . . . . . . . Refit 1 | . . . . . 1 . . . . Recycling Unit Hacks . | . . . . . . . . . . Scanalyzer 2 | . . 2 . . . . . . . Retrieve Study 2 | . . 2 . . . . . . . Garrison Access Hacks . | . . . . . . . . . . Unauthorized Hacks . | . . . . . . . . . . Terminals . | . . . . . . . . . . Fabricators . | . . . . . . . . . . Repair Stations . | . . . . . . . . . . Recycling Units . | . . . . . . . . . . Scanalyzers . | . . . . . . . . . . Garrison Access . | . . . . . . . . . . Data Cores Recovered . | . . . . . . . . . . Used . | . . . . . . . . . . Hacking Detections 14 | . 1 3 . 6 4 . . . . Full Trace Events 2 | . . . . 1 1 . . . . Feedback Events . | . . . . . . . . . . Feedback Blocked . | . . . . . . . . . . Robot Schematics Acquired 4 | . . . . . . . . 4 . Robots Built . | . . . . . . . . . . Authchips . | . . . . . . . . . . Time . | . . . . . . . . . . Total Robot Build Rating . | . . . . . . . . . . Part Schematics Acquired 11 | . . . . 3 . . . 8 . Parts Built . | . . . . . . . . . . Authchips . | . . . . . . . . . . Time . | . . . . . . . . . . Total Part Build Rating . | . . . . . . . . . . Part Studies Acquired 2 | . . 2 . . . . . . . Parts Repaired 1 | . . 1 . . . . . . . Time 26 | . . 26 . . . . . . . Parts Recycled . | . . . . . . . . . . Recycled Matter . | . . . . . . . . . . Retrieved Matter . | . . . . . . . . . . Retrieved Components . | . . . . . . . . . . Parts Scanalyzed . | . . . . . . . . . . Part Schematics Acquired . | . . . . . . . . . . Parts Damaged . | . . . . . . . . . . Bothacking | -11 -10 -9 -8 -8 -7 -7 -7 -7 -6 ------------ Run | Yrd Mat Mat Mat Sto Fac Low Low Dat Pro Used RIF Installer . | . . . . . . . . . . Robots Hacked . | . . . . . . . . . . Non-combat . | . . . . . . . . . . Combat . | . . . . . . . . . . Robot Hacks Applied . | . . . . . . . . . . Relay Couplers Released . | . . . . . . . . . . Fabnet Peak Effective % . | . . . . . . . . . . Robots Rewired 1 | . . . . . . . . . 1 Allies Hacked . | . . . . . . . . . . Hacks Repelled . | . . . . . . . . . . Allies | -11 -10 -9 -8 -8 -7 -7 -7 -7 -6 -------- Run | Yrd Mat Mat Mat Sto Fac Low Low Dat Pro Total Allies 2 | . . . . . . . . . 2 Largest Group 1 | . . . . . . . . . 1 Highest-Rated Group 96 | . . . . . . . . . 96 Highest-Rated Ally 96 | . . . . . . . . . 96 Total Orders . | . . . . . . . . . . Ally Attacks 20 | . . . . . . . . . 20 Total Damage 764 | . . . . . . . . . 764 Kills 5 | . . . . . . . . . 5 Allies Corrupted . | . . . . . . . . . . Allies Melted . | . . . . . . . . . . Intel | -11 -10 -9 -8 -8 -7 -7 -7 -7 -6 ------- Run | Yrd Mat Mat Mat Sto Fac Low Low Dat Pro Active Infowar (turns) 2079 | 97 211 683 18 180 76 639 175 . . Sensors 890 | . . . . . 76 639 175 . . Terrain 928 | 47 . 683 18 180 . . . . . Seismic 1100 | 50 211 683 18 138 . . . . . Robot Analysis Total 1 | . . . . . 1 . . . . Derelict Logs Recovered 4 | . . . . . . 2 2 . . Drone Launches . | . . . . . . . . . . Drone Recoveries . | . . . . . . . . . . Exploration | -11 -10 -9 -8 -8 -7 -7 -7 -7 -6 ------------- Run | Yrd Mat Mat Mat Sto Fac Low Low Dat Pro Turns Passed 4558 | 199 211 683 18 511 994 639 536 102 665 Spaces Moved 2786 | 102 118 340 15 284 680 477 316 79 375 Core 5 | 4 . . . . . . . . 1 Treads 556 | 98 118 340 . . . . . . . Legs 1426 | . . . . . 180 477 316 79 374 Wheels 799 | . . . 15 284 500 . . . . Hover . | . . . . . . . . . . Flight . | . . . . . . . . . . Fastest Speed 50 | 50 160 160 115 83 83 130 130 130 120 Average Speed 128 | 155 160 160 115 97 111 130 130 130 130 Slowest Speed 350 | 160 160 160 115 115 135 130 130 130 350 Overloaded Moves . | . . . . . . . . . . Propulsion Burnouts . | . . . . . . . . . . Robots Hopped . | . . . . . . . . . . Potential Cave-ins . | . . . . . . . . . . Cave-ins Triggered . | . . . . . . . . . . Exploration Rate (%) 35 | 5 23 29 3 44 19 79 47 68 36 Regions Visited 9 Branch Regions 5 Pre-discovered Areas 2 | . . . . . . 1 . 1 . Known Exits Taken 5 | . . . . 1 1 1 1 1 . Unknown Exits Taken 4 | 1 1 1 1 . . . . . . Scrap Searched 6 | . . . . . . 4 2 . . Spaces Dug . | . . . . . . . . . . Terrain Destroyed 130 | . . . . . 16 24 60 . 30 Melee . | . . . . . . . . . . Projectile . | . . . . . . . . . . AOE 130 | . . . . . 16 24 60 . 30 Terrain Rammed . | . . . . . . . . . . Walls Destroyed . | . . . . . . . . . . Machines Disabled . | . . . . . . . . . . Actions | -11 -10 -9 -8 -8 -7 -7 -7 -7 -6 --------- Run | Yrd Mat Mat Mat Sto Fac Low Low Dat Pro Total 3475 | 125 132 446 15 436 836 487 428 78 492 Wait 310 | . 8 66 . 87 41 . 93 . 15 Move 2777 | 101 117 339 14 283 679 476 315 78 375 Hop . | . . . . . . . . . . Pick Up 54 | 8 1 9 . 10 23 . 2 . 1 Fast Attach 23 | 7 . 2 . 3 5 . . . 6 Attach 27 | 1 . 1 1 3 14 1 1 . 5 Detach 1 | 1 . . . . . . . . . Swap 31 | . . 7 . 3 12 3 6 . . Drop 33 | . 1 5 . 8 17 1 1 . . Fire 144 | 7 5 17 . 38 36 6 9 . 26 Melee 3 | . . . . . 1 . . . 2 Ram 1 | . . . . 1 . . . . . Kick 59 | . . . . . . . . . 59 Crush . | . . . . . . . . . . Escape Stasis 8 | . . . . . 8 . . . . Rewire 3 | . . . . . . . . . 3 Trap . | . . . . . . . . . . Miscellaneous 1 | . . . . . . . 1 . . Route ------- -11/Scrapyard -10/Materials -9/Materials -8/Materials (discovered 2 exits: *Sto x2) -8/Storage -7/Factory -7/Lower Caves -7/Lower Caves -7/Data Miner -6/Proximity Caves History --------- Turn | Location | Event 9 | -11/Scrapyard | Discovered new exit (range 15) 200 | -11/Scrapyard | Entered Materials 309 | -10/Materials | Build established: Mutant 394 | -10/Materials | Discovered new exit (range 11) 411 | -10/Materials | Entered another Materials area 411 | -9/Materials | Evolved 2 slots: Utility x2 539 | -9/Materials | Repaired Assault Rifle 938 | -9/Materials | Build established: Scavenger-Mutant 1061 | -9/Materials | Discovered new exit (range 12) 1094 | -9/Materials | Entered another Materials area 1094 | -8/Materials | Evolved 2 slots: Propulsion x1, Weapon x1 1095 | -8/Materials | Discovered new exit (range 15) 1110 | -8/Materials | Discovered new exit (range 12) 1112 | -8/Materials | Entered Storage 1481 | -8/Storage | Identified exit to Factory 1623 | -8/Storage | Entered Factory 1623 | -7/Factory | Evolved 2 slots: Power x1, Utility x1 2035 | -7/Factory | Build established: Scavenger-Gunner 2109 | -7/Factory | Lost 4 parts (2n1u1w) 2498 | -7/Factory | Discovered new exit (range 13) 2566 | -7/Factory | Identified exit to Lower Caves 2617 | -7/Factory | Entered Lower Caves 2619 | -7/Lower Caves | Attracted the attention of an 0b10 checkpoint 2821 | -7/Lower Caves | Build established: Skirmisher 2948 | -7/Lower Caves | Learned Factory stockpile data 3109 | -7/Lower Caves | Discovered new exit (range 8) 3148 | -7/Lower Caves | Identified exit to Lower Caves 3256 | -7/Lower Caves | Entered another Lower Caves area 3257 | -7/Lower Caves | Encountered a Warlord checkpoint 3263 | -7/Lower Caves | Learned location of 1 exit from Factory 3396 | -7/Lower Caves | Learned Factory stockpile data 3537 | -7/Lower Caves | Found DRS Beacon 3548 | -7/Lower Caves | Activated DRS Beacon 3701 | -7/Lower Caves | Build established: Gunner 3768 | -7/Lower Caves | Discovered new exit (range 3) 3777 | -7/Lower Caves | Identified exit to Data Miner 3792 | -7/Lower Caves | Entered Data Miner 3792 | -7/Data Miner | Discovered new exit (range 6) 3817 | -7/Data Miner | Met Data Miner 3842 | -7/Data Miner | Learned location of Section 7 (-2) 3842 | -7/Data Miner | Acquired the access code to Warlord's prototype stash 3865 | -7/Data Miner | Received God Mode back door access code from Data Miner 3893 | -7/Data Miner | Identified exit to Proximity Caves 3894 | -7/Data Miner | Entered Proximity Caves 3951 | -6/Proximity Caves | Attracted the attention of an 0b10 checkpoint 4212 | -6/Proximity Caves | Attracted the attention of an 0b10 outpost 4300 | -6/Proximity Caves | Lost 10 parts (2p3n1u4w) 4324 | -6/Proximity Caves | Core integrity fell below 50% 4377 | -6/Proximity Caves | Escorted by Enhanced Grunt 4507 | -6/Proximity Caves | Core integrity fell below 20% 4528 | -6/Proximity Caves | Build established: Mutant 4559 | -6/Proximity Caves | Destroyed by S-27 Virus with Autogun Last Messages --------------- 04502_ Titanium Leg destroyed. 04504_ Enhanced Grunt destroyed. 04507_ Acquired Enh. Flexi-carbon Leg. 04515_ Kicked S-27 Virus out of the way. 04518_ Kicked S-27 Virus. 04519_ Kicked S-27 Virus out of the way. 04520_ Kicked S-27 Virus. 04523_ Kicked S-27 Virus out of the way. 04524_ Kicked S-27 Virus. 04524_ M-28 Smith repairs S-27 Virus. 04525_ Kicked S-27 Virus. 04526_ Target Analyzer destroyed. 04526_ Kicked S-27 Virus out of the way. 04526_ S-27 Virus destroyed. 04529_ Acquired Lgt. Nuclear Core. 04535_ Kicked S-27 Virus out of the way. 04542_ Enh. Flexi-carbon Leg destroyed. 04542_ Lgt. Nuclear Core destroyed. 04551_ Titanium Leg destroyed. 04557_ Enh. Flexi-carbon Leg destroyed. Map ----- +----------------------------------------------------+ | # #????????????????????????????????????? | | #???????????????????????????????????? | | ## #####???????????????????????????????????? | | ######???????????????????????????????????????? | | # ##??????????????????????????????????????????? | | # #??????????????????????????????????????????? | | # ##?????????????????????????????????????????? | | #?????????????????????????????????????????? | | % #?????????????????????????????????????????? | | ##????????????????????????????????????????? | | % #???????????###??????????????????????????? | | #??????????? ##????????????????????????? | | #??????????? ##???????????????????????? | | ### #???????????# ##??????????????????????? | | ### ##??????????# ##?????????????????????? | | ## #??????????? #?????????????????????? | | #########??? #?????????????????????? | | # %% #???# #??????????????????????? | | # % % %%#??## #???????????????????????? | | # ## #####%####s #???????????????????????? | | ##### #??# ##?????????? ??????????? | | # #?## #??######s ####???? ?????????? | | ### ##???????# s ### ?????????? | | ## ##???????## #??????????? | | ### #???????## #???????????? | | ??##### #???????# @ #???????????? | | ??????## #??####?# ????????? | | ???????# #### ### ????????? | | ???????# ## ## #####?????????? | | ???????## ### ## #?????????????? | | ????????#### ##?# #?## #?????????????? | | ???????????## ##?# ???### ????????????? | | ????????????###?# ??????# ???????????? | | ????????????????# ???????## ???????????? | | ????????????????# ?????????# ## #???????????? | | ????????????????##" ??????????###??#????????????? | | ?????????????????#%"#????????????????????????????? | | ?????????????????# ?????????????????????????????? | | ?????????????????? ??????????????????????????????? | | ?????????????????????????????????????????????????? | | ?????????????????????????????????????????????????? | | ?????????????????????????????????????????????????? | | ?????????????????????????????????????????????????? | | ?????????????????????????????????????????????????? | | ?????????????????????????????????????????????????? | | ?????????????????????????????????????????????????? | | ?????????????????????????????????????????????????? | | ?????????????????????????????????????????????????? | | ?????????????????????????????????????????????????? | | ?????????????????????????????????????????????????? | +----------------------------------------------------+ Best States ------------- Heat Dissipation 34 Energy Generation 30 Energy Capacity 230 Matter Stores 300 Matter Capacity 300 Sight Range 16 Robot Scan Range 15 Terrain Scan Range 16 Terrain Scan Density 110 Armor Coverage 150 Resistance: EM 15 Evasion (%) 55 Targeting Accuracy 8 Target Analysis 5 Recoil Reduction 2 Defensive Hacking 10 Item Schematics ----------------- Flak Cannon | -8/Storage | Hacked Airjet | -8/Storage | Hacked Energy Well | -8/Storage | Hacked Combat Drone Bay | -7/Data Miner | Free Lgt. Regenerative Plating | -7/Data Miner | Free Biomechanical Wings | -7/Data Miner | Free Thermal Defense Suite | -7/Data Miner | Free Imp. Lightning Gun | -7/Data Miner | Free Field Propulsion Drive | -7/Data Miner | Free Imp. Corruption Screen | -7/Data Miner | Free Imp. Plasma Cutter | -7/Data Miner | Free Robot Schematics ------------------ Y-54 Guardian | -7/Data Miner | Free O-24 Administrator | -7/Data Miner | Free R-10 Processor | -7/Data Miner | Free X-57 Shotgunner | -7/Data Miner | Free Fabricated ------------ Nothing Repaired ---------- Assault Rifle | 67% | -9/Materials Studied --------- Wheel | -9/Materials | Hacked Hvy. Assault Rifle | -9/Materials | Hacked Alien Tech Used ----------------- None Achievements -------------- The Oracle Challenges ------------ None Game ------ Seed SurveybotRagnarokShredder Manual? 0 Play Time 00:48:32 Cumulative 34.2 hours Start 2026.02.24 @ 20:56:08 End 2026.02.24 @ 21:48:20 Sessions 1 Manual Loads 0 Difficulty Rogue Special Mode None Game No. 40 Rogue 40 Adventurer 0 Explorer 0 Win Type - Total 0 Types 0/0/0/0/0/0/0/0/0/0 Lore% 15 Gallery% 30 Achievement% 22 Wizard Run 0 Options --------- Layout 2 ASCII 0 Keyboard 0 Movement Numpad Keybinds 1 Fullscreen 1 Font 24/Smallcaps Map View 50x44 Zoom Use 0% Tactical HUD 1 Map Filters NONE Filters NONE Steam 1 RUN: a72ce009-176c-4972-be48-f17c9f1a6815